bitfinex-derivatives/quotes_BTCF0:USTF0_20250609
["timestamp","ask_amount","ask_price","bid_price","bid_amount"]
[1749427675377,0.4393019,105650.0,105640.0,0.75124838]
[1749427675577,0.5446019,105650.0,105640.0,0.54523147]
[1749427676281,0.5466019,105650.0,105640.0,0.54523147]
[1749427676479,0.5466019,105650.0,105640.0,0.90603147]
[1749427676874,0.9962019,105650.0,105640.0,1.09525937]
[1749427677777,0.391135,105650.0,105640.0,1.25567505]
[1749427677979,0.11216,105650.0,105640.0,1.46467505]
[1749427678178,0.004,105650.0,105640.0,1.86180516]
[1749427678386,0.0001416,105660.0,105650.0,0.18921]
[1749427678586,0.0001416,105660.0,105650.0,1.44339557]
[1749427678790,0.1893337,105660.0,105650.0,1.53804357]
[1749427678977,0.1893337,105660.0,105650.0,1.42712176]
[1749427679178,0.1893337,105660.0,105650.0,1.82707029]
[1749427679377,0.1893337,105660.0,105650.0,1.37743029]
[1749427679785,0.1893337,105660.0,105650.0,1.53784597]
[1749427679985,0.1893337,105660.0,105650.0,1.53884597]
[1749427680981,0.1893337,105660.0,105650.0,1.54084597]
[1749427681183,0.0001416,105660.0,105650.0,2.04590965]
[1749427681483,0.0001416,105660.0,105650.0,2.04490965]
[1749427681688,0.3919002,105680.0,105670.0,0.1891742]
[1749427681894,0.3919002,105680.0,105670.0,1.53684693]
[1749427682185,0.3919002,105680.0,105670.0,1.74894693]
[1749427682387,0.3919002,105680.0,105670.0,1.8435946]
[1749427682585,0.3919002,105680.0,105670.0,1.49400472]
[1749427682886,1.00255588,105680.0,105670.0,0.31388593]
[1749427683081,1.22923718,105680.0,105670.0,0.31388593]
[1749427683288,1.33473718,105680.0,105670.0,0.31388593]
[1749427683788,1.31835588,105680.0,105670.0,0.31388593]
[1749427684290,1.67915588,105680.0,105670.0,0.31388593]
[1749427684487,1.67915588,105680.0,105670.0,0.21388593]
[1749427684684,0.1891743,105670.0,105660.0,0.0001416]
[1749427684881,0.91578998,105670.0,105660.0,0.1001416]
[1749427685077,0.91578998,105670.0,105660.0,0.19477136]
[1749427685689,0.91578998,105670.0,105660.0,0.1001416]
[1749427686089,0.91978998,105670.0,105660.0,0.0001416]
[1749427687291,0.92378998,105670.0,105660.0,0.0001416]
[1749427689799,1.35290998,105670.0,105660.0,0.0001416]
[1749427690491,1.35290998,105670.0,105660.0,0.1001416]
[1749427693805,1.80326998,105670.0,105660.0,0.1001416]
[1749427694299,1.35290998,105670.0,105660.0,0.2001416]
[1749427694506,1.35290998,105670.0,105660.0,0.1001416]
[1749427694706,1.91298998,105670.0,105660.0,0.1001416]
[1749427695799,1.46270998,105670.0,105660.0,0.1379916]
[1749427695999,1.91398998,105670.0,105660.0,0.1379916]
[1749427696200,1.91398998,105670.0,105660.0,0.2379916]
[1749427696400,1.91398998,105670.0,105660.0,0.1379916]
[1749427696600,1.91398998,105670.0,105660.0,0.2379916]
[1749427699309,1.1924943,105670.0,105660.0,0.2379916]
[1749427699514,0.7360943,105670.0,105660.0,0.98712241]
[1749427699710,0.7360943,105670.0,105660.0,1.18982241]
[1749427699903,0.7360943,105670.0,105660.0,1.4362412]
[1749427700512,0.7330943,105670.0,105660.0,1.4362412]
[1749427700804,0.7330943,105670.0,105660.0,1.4402978]
[1749427701308,0.3039743,105670.0,105660.0,1.4402978]
[1749427702411,0.3009743,105670.0,105660.0,1.4402978]
[1749427703307,0.3009743,105670.0,105660.0,1.64528411]
[1749427703902,0.3009743,105670.0,105660.0,1.64122751]
[1749427704806,0.3009743,105670.0,105660.0,1.93812751]
[1749427705006,0.3009743,105670.0,105660.0,1.7331412]
[1749427705205,0.1911743,105670.0,105660.0,1.7331412]
[1749427705505,0.3009743,105670.0,105660.0,1.9521244]
[1749427705808,0.002,105670.0,105660.0,2.7467644]
[1749427706011,0.1101416,105690.0,105680.0,0.1891563]
[1749427706200,0.29928,105690.0,105680.0,2.04636952]
[1749427706399,0.29928,105690.0,105680.0,2.36366952]
[1749427706605,0.29928,105690.0,105680.0,2.10873625]
[1749427706911,0.45969568,105690.0,105680.0,1.70522691]
[1749427707213,0.30228,105690.0,105680.0,0.77782111]
[1749427707413,0.85944,105690.0,105680.0,0.77782111]
[1749427707614,0.95944,105690.0,105680.0,0.77782111]
[1749427708114,0.19448,105690.0,105680.0,1.32777741]
[1749427708311,0.30428,105690.0,105680.0,1.58819309]
[1749427708710,0.30428,105690.0,105680.0,1.42777741]
[1749427709419,0.30428,105690.0,105680.0,1.23862111]
[1749427709607,0.30428,105690.0,105680.0,1.42777741]
[1749427710815,0.30428,105690.0,105680.0,1.72467741]
[1749427712720,0.30428,105690.0,105680.0,1.53552111]
[1749427712922,0.30428,105690.0,105680.0,1.07472111]
[1749427713218,0.57019568,105690.0,105680.0,0.6627824]
[1749427713419,0.77289568,105690.0,105680.0,0.51585174]
[1749427713614,0.61248,105690.0,105680.0,0.61047254]
[1749427713915,0.61248,105690.0,105680.0,0.72097254]
[1749427714618,0.51088,105690.0,105680.0,1.27092884]
[1749427714808,0.30428,105690.0,105680.0,1.2544771]
[1749427715009,0.75416,105690.0,105680.0,1.37326061]
[1749427716419,0.75416,105690.0,105680.0,1.18410431]
[1749427716721,0.75416,105690.0,105680.0,0.88720431]
[1749427718522,0.75416,105690.0,105680.0,1.07636061]
[1749427719620,0.75416,105690.0,105680.0,0.88720431]
[1749427720123,0.75416,105690.0,105680.0,1.07636061]
[1749427721515,0.30428,105690.0,105680.0,1.07636061]
[1749427721822,0.30428,105690.0,105680.0,1.48370695]
[1749427722613,0.30428,105690.0,105680.0,1.78060695]
[1749427723116,0.30428,105690.0,105680.0,1.62019127]
[1749427723420,0.30356,105690.0,105680.0,1.78060695]
[1749427723621,0.0053416,105690.0,105680.0,2.22948695]
[1749427723916,0.0053416,105690.0,105680.0,2.38298609]
[1749427724326,0.0053416,105690.0,105680.0,2.17718029]
[1749427724720,0.0053416,105690.0,105680.0,2.25385411]
[1749427725225,0.0053416,105690.0,105680.0,2.54880897]
[1749427726225,0.1944799,105690.0,105680.0,2.54880897]
[1749427726416,0.0053416,105690.0,105680.0,2.54880897]
[1749427727526,0.0053416,105690.0,105680.0,2.79880897]
[1749427727826,0.0053416,105690.0,105680.0,2.90784897]
[1749427728011,0.23777116,105720.0,105710.0,0.1891026]
[1749427728216,0.18937206,105720.0,105710.0,1.81463191]
[1749427728418,0.18937206,105720.0,105710.0,1.99428315]
[1749427728614,0.18937206,105720.0,105710.0,2.13374735]
[1749427728826,0.18957206,105720.0,105710.0,2.13374735]
[1749427729016,0.18957206,105720.0,105710.0,2.29416303]
[1749427729221,0.19657206,105720.0,105710.0,2.29516303]
[1749427729421,0.20157206,105720.0,105710.0,2.33299303]
[1749427730027,0.20057206,105720.0,105710.0,2.33199303]
[1749427730624,0.01147426,105720.0,105710.0,2.33199303]
[1749427730829,0.01127426,105720.0,105710.0,2.42658503]
[1749427731030,0.01127426,105720.0,105710.0,2.22132595]
[1749427731330,0.01553086,105720.0,105710.0,2.22132595]
[1749427731829,0.00453086,105720.0,105710.0,2.22332595]
[1749427732124,0.00453086,105720.0,105710.0,1.47187053]
[1749427732328,0.83619958,105720.0,105710.0,0.35531567]
[1749427732528,1.49625958,105720.0,105710.0,0.12855587]
[1749427732732,1.49625958,105720.0,105710.0,0.204]
[1749427733125,0.9750439,105720.0,105710.0,0.29859395]
[1749427733325,0.4148839,105720.0,105710.0,0.29859395]
[1749427733526,0.9748039,105720.0,105710.0,0.31741391]
[1749427733727,0.9750039,105720.0,105710.0,0.31741391]
[1749427734224,0.9750039,105720.0,105710.0,0.50551661]
[1749427734420,0.4148839,105720.0,105710.0,1.02673229]
[1749427734619,0.4238239,105720.0,105710.0,0.86531661]
[1749427734827,0.11137426,105720.0,105710.0,1.27112831]
[1749427735024,0.11231426,105720.0,105710.0,1.48212831]
[1749427735225,0.30159906,105720.0,105710.0,1.48212831]
[1749427735425,0.30439906,105720.0,105710.0,1.48112831]
[1749427735621,0.30459906,105720.0,105710.0,1.48112831]
[1749427735933,0.30459906,105720.0,105710.0,1.50951831]
[1749427737224,0.19555906,105720.0,105710.0,1.50951831]
[1749427737429,0.19555906,105720.0,105710.0,1.80641831]
[1749427739436,0.19535906,105720.0,105710.0,1.80641831]
[1749427739634,0.19555906,105720.0,105710.0,1.86497672]
[1749427739935,0.19535906,105720.0,105710.0,1.86497672]
[1749427740137,0.19555906,105720.0,105710.0,1.95956872]
[1749427740627,0.19555906,105720.0,105710.0,1.86497672]
[1749427740934,0.19555906,105720.0,105710.0,1.95956872]
[1749427742628,0.00647426,105720.0,105710.0,1.86497672]
[1749427742833,0.00647426,105720.0,105710.0,1.95956872]
[1749427743033,0.00627426,105720.0,105710.0,1.95956872]
[1749427743234,0.00647426,105720.0,105710.0,1.95956872]
[1749427743428,0.00647426,105720.0,105710.0,2.20956872]
[1749427743738,0.00647426,105720.0,105710.0,2.00461429]
[1749427743942,0.00627426,105720.0,105710.0,2.11365429]
[1749427744130,0.00647426,105720.0,105710.0,2.40860915]
[1749427744535,0.01033086,105720.0,105710.0,2.40860915]
[1749427744840,0.01053086,105720.0,105710.0,2.40860915]
[1749427746335,0.01053086,105720.0,105710.0,2.49944915]
[1749427746336,0.19961566,105720.0,105710.0,2.49944915]
[1749427746537,0.19961566,105720.0,105710.0,2.04956915]
[1749427746738,0.19961566,105720.0,105710.0,1.99939249]
[1749427746938,0.30281566,105720.0,105710.0,2.15447763]
[1749427747140,0.41271566,105720.0,105710.0,1.65737763]
[1749427747327,0.41271566,105720.0,105710.0,1.20733763]
[1749427747532,0.41271566,105720.0,105710.0,1.8036411]
[1749427747737,0.30281566,105720.0,105710.0,1.96405678]
[1749427747935,0.19961566,105720.0,105710.0,2.06595678]
[1749427748835,0.30731566,105720.0,105710.0,2.06595678]
[1749427749134,0.30731566,105720.0,105710.0,2.06600399]
[1749427749538,0.30731566,105720.0,105710.0,1.91957331]
[1749427750337,0.30731566,105720.0,105710.0,1.81767331]
[1749427750541,0.30731566,105720.0,105710.0,1.70687331]
[1749427750542,0.52261566,105720.0,105710.0,1.70687331]
[1749427750742,0.52261566,105720.0,105710.0,1.54645763]
[1749427751139,0.52261566,105720.0,105710.0,0.90743493]
[1749427751341,0.52261566,105720.0,105710.0,1.05404433]
[1749427751530,0.52261566,105720.0,105710.0,0.69324433]
[1749427751735,0.68303134,105720.0,105710.0,0.34180391]
[1749427757441,1.04383134,105720.0,105710.0,0.34180391]
[1749427758936,1.04383134,105720.0,105710.0,0.24720996]
[1749427759336,0.88341566,105720.0,105710.0,0.24720996]
[1749427759645,1.04383134,105720.0,105710.0,0.24720996]
[1749427762038,1.56730334,105720.0,105710.0,0.14720996]
[1749427762646,1.81730334,105720.0,105710.0,0.14720996]
[1749427762943,1.81730334,105720.0,105710.0,0.065231]
[1749427763150,1.81730334,105720.0,105710.0,0.12839]
[1749427763337,1.81730334,105720.0,105710.0,0.22839]
[1749427763338,1.40688766,105720.0,105710.0,0.22839]
[1749427763646,1.87017566,105720.0,105710.0,0.22839]
[1749427763842,1.50917566,105720.0,105710.0,0.22839]
[1749427764142,1.50937566,105720.0,105710.0,0.22839]
[1749427764342,1.06089566,105720.0,105710.0,0.22839]
[1749427764546,0.95149566,105720.0,105710.0,0.32298395]
[1749427764740,0.84559566,105720.0,105710.0,1.17991163]
[1749427764943,0.84559566,105720.0,105710.0,1.38731163]
[1749427765132,0.65651086,105720.0,105710.0,1.59361163]
[1749427765337,0.73789556,105720.0,105710.0,1.59361163]
[1749427765547,0.73769556,105720.0,105710.0,1.59361163]
[1749427765747,0.73789556,105720.0,105710.0,1.43319595]
[1749427765949,0.73769556,105720.0,105710.0,1.43319595]
[1749427766146,0.73789556,105720.0,105710.0,1.43319595]
[1749427766456,0.73789556,105720.0,105710.0,1.24409335]
[1749427766752,0.94629556,105720.0,105710.0,0.93209335]
[1749427766941,0.94629556,105720.0,105710.0,1.12119595]
[1749427768852,0.94629556,105720.0,105710.0,0.93209335]
[1749427769051,1.10671124,105720.0,105710.0,0.83039335]
[1749427769552,1.10671124,105720.0,105710.0,0.68378395]
[1749427770743,0.94629556,105720.0,105710.0,0.68378395]
[1749427771738,0.94629556,105720.0,105710.0,0.32298395]
[1749427771942,1.10671124,105720.0,105710.0,0.32298395]
[1749427772248,0.94629556,105720.0,105710.0,0.32298395]
[1749427772438,1.10671124,105720.0,105710.0,0.32298395]
[1749427774549,1.46751124,105720.0,105710.0,0.46959335]
[1749427774951,1.46751124,105720.0,105710.0,0.32298395]
[1749427776656,1.46751124,105720.0,105710.0,0.46959335]
[1749427776862,1.46751124,105720.0,105710.0,0.3749994]
[1749427777147,1.46751124,105720.0,105710.0,0.22839]
[1749427780658,1.46751124,105720.0,105710.0,0.3749994]
[1749427780856,1.46751124,105720.0,105710.0,0.2749994]
[1749427781052,1.46751124,105720.0,105710.0,0.12839]
[1749427781254,0.1891025,105710.0,105700.0,0.3516684]
[1749427781453,1.46637818,105710.0,105700.0,0.5516684]
[1749427781650,1.46637818,105710.0,105700.0,0.34683738]
[1749427782444,1.48602442,105710.0,105700.0,0.34683738]
[1749427783146,1.48602442,105710.0,105700.0,0.20022798]
[1749427783348,1.48802442,105710.0,105700.0,0.20022798]
[1749427786460,1.32760874,105710.0,105700.0,0.20022798]
[1749427786654,1.48802442,105710.0,105700.0,0.31022798]
[1749427786850,1.48802442,105710.0,105700.0,0.41342798]
[1749427787058,1.38920442,105710.0,105700.0,0.41342798]
[1749427787257,1.38920442,105710.0,105700.0,0.52412798]
[1749427788856,1.12778874,105710.0,105700.0,0.52412798]
[1749427789061,0.76698874,105710.0,105700.0,0.61873088]
[1749427789253,0.76698874,105710.0,105700.0,0.76534028]
[1749427789860,0.76838874,105710.0,105700.0,0.76534028]
[1749427790263,0.76858874,105710.0,105700.0,1.31526078]
[1749427790464,0.76838874,105710.0,105700.0,1.16865138]
[1749427790666,0.76858874,105710.0,105700.0,1.16865138]
[1749427790865,0.76838874,105710.0,105700.0,1.3734824]
[1749427791066,0.76842874,105710.0,105700.0,1.3734824]
[1749427791569,0.76842874,105710.0,105700.0,1.0126824]
[1749427791762,0.76842874,105710.0,105700.0,1.3734824]
[1749427791962,0.76822874,105710.0,105700.0,1.3734824]
[1749427792261,0.76842874,105710.0,105700.0,1.3734824]
[1749427793069,0.77248534,105710.0,105700.0,1.1843619]
[1749427793270,0.77248534,105710.0,105700.0,0.8235619]
[1749427794164,1.29370102,105710.0,105700.0,0.64667437]
[1749427794368,1.60620102,105710.0,105700.0,0.64667437]
[1749427794666,1.03780102,105710.0,105700.0,0.55244335]
[1749427794867,0.93238102,105710.0,105700.0,0.86527437]
[1749427795074,0.37542102,105710.0,105700.0,0.86527437]
[1749427795376,0.88918149,105710.0,105700.0,0.86527437]
[1749427795768,0.78070149,105710.0,105700.0,1.05439487]
[1749427796070,0.21500534,105710.0,105700.0,1.21036385]
[1749427796273,0.21500534,105710.0,105700.0,1.3681824]
[1749427796274,0.76786874,105710.0,105700.0,1.3681824]
[1749427796568,0.76786874,105710.0,105700.0,1.6650824]
[1749427796774,0.76786874,105710.0,105700.0,1.46025138]
[1749427796975,0.76766874,105710.0,105700.0,1.46025138]
[1749427797172,0.76686874,105710.0,105700.0,1.46025138]
[1749427797473,0.76586874,105710.0,105700.0,1.46025138]
[1749427799871,0.76566874,105710.0,105700.0,1.46025138]
[1749427800172,0.76586874,105710.0,105700.0,1.46025138]
[1749427800368,0.76566874,105710.0,105700.0,1.46025138]
[1749427800672,0.76586874,105710.0,105700.0,1.46025138]
[1749427802873,0.1913025,105710.0,105700.0,1.57734753]
[1749427803065,0.1913025,105710.0,105700.0,1.67194752]
[1749427803066,0.0022,105710.0,105700.0,1.67194752]
[1749427803267,0.0022,105710.0,105700.0,1.92194752]
[1749427803469,0.00041106,105710.0,105700.0,1.92194752]
[1749427803672,0.18951366,105710.0,105700.0,1.92194752]
[1749427803876,0.00041106,105710.0,105700.0,2.30368356]
[1749427804078,0.00021106,105710.0,105700.0,2.30368356]
[1749427804281,0.00041106,105710.0,105700.0,2.30368356]
[1749427804569,0.00021106,105710.0,105700.0,2.30368356]
[1749427804772,0.00041106,105710.0,105700.0,2.30368356]
[1749427805371,0.00021106,105710.0,105700.0,2.30368356]
[1749427805670,0.18951366,105710.0,105700.0,2.30368356]
[1749427806270,0.18951366,105710.0,105700.0,1.95908357]
[1749427807384,0.19357026,105710.0,105700.0,1.95908357]
[1749427807582,0.19357026,105710.0,105700.0,2.25274354]
[1749427807884,0.30205026,105710.0,105700.0,1.75391135]
[1749427808384,0.30205026,105710.0,105700.0,1.46025138]
[1749427808983,0.30205026,105710.0,105700.0,1.66590397]
[1749427809387,0.29799366,105710.0,105700.0,1.46025138]
[1749427809776,0.29799366,105710.0,105700.0,1.4767856]
[1749427809777,0.41508981,105710.0,105700.0,1.4767856]
[1749427809977,0.52198981,105710.0,105700.0,1.5659061]
[1749427810181,0.40489366,105710.0,105700.0,1.5659061]
[1749427810381,0.40895026,105710.0,105700.0,1.5659061]
[1749427811392,0.40895026,105710.0,105700.0,1.2687856]
[1749427811587,0.40895026,105710.0,105700.0,1.4579061]
[1749427811891,0.51495026,105710.0,105700.0,1.4579061]
[1749427815086,0.51495026,105710.0,105700.0,1.60487758]
[1749427815393,0.51495026,105710.0,105700.0,1.39922286]
[1749427815595,0.51089366,105710.0,105700.0,1.39922286]
[1749427815791,0.29799366,105710.0,105700.0,1.61631901]
[1749427816097,0.29799366,105710.0,105700.0,1.71621901]
[1749427817296,0.29799366,105710.0,105700.0,1.59912286]
[1749427817598,0.50669366,105710.0,105700.0,1.39922286]
[1749427818495,0.51075026,105710.0,105700.0,1.39922286]
[1749427818796,0.62784641,105710.0,105700.0,0.73870236]
[1749427819194,0.62784641,105710.0,105700.0,0.92782286]
[1749427819392,0.51075026,105710.0,105700.0,1.28862286]
[1749427819792,0.51075026,105710.0,105700.0,1.38972286]
[1749427820493,0.29799366,105710.0,105700.0,1.50681901]
[1749427820697,0.29799366,105710.0,105700.0,1.71011901]
[1749427821489,0.29779366,105710.0,105700.0,1.71011901]
[1749427821690,0.30205026,105710.0,105700.0,1.71011901]
[1749427823092,0.30205026,105710.0,105700.0,1.09950236]
[1749427823291,0.51975026,105710.0,105700.0,1.09950236]
[1749427824797,0.51975026,105710.0,105700.0,1.1581856]
[1749427824997,0.51975026,105710.0,105700.0,1.3473061]
[1749427825790,0.51975026,105710.0,105700.0,1.1581856]
[1749427826591,0.51975026,105710.0,105700.0,0.7973856]
[1749427828705,0.51975026,105710.0,105700.0,1.3473061]
[1749427829097,0.51975026,105710.0,105700.0,1.49441532]
[1749427829293,0.51975026,105710.0,105700.0,1.3985606]
[1749427829898,0.51975026,105710.0,105700.0,1.36854753]
[1749427829899,0.40859366,105710.0,105700.0,1.36854753]
[1749427830100,0.18951366,105710.0,105700.0,1.57494753]
[1749427830295,0.29815366,105710.0,105700.0,1.57494753]
[1749427830496,0.29795366,105710.0,105700.0,1.78084495]
[1749427830996,0.10885106,105710.0,105700.0,2.22716495]
[1749427831197,0.29815366,105710.0,105700.0,2.02126753]
[1749427831405,0.18931366,105710.0,105700.0,2.02126753]
[1749427831807,0.18951366,105710.0,105700.0,2.02126753]
[1749427832807,0.19357026,105710.0,105700.0,2.02126753]
[1749427833206,0.19357026,105710.0,105700.0,2.22716495]
[1749427834197,0.19357026,105710.0,105700.0,2.3149275]
[1749427834695,0.18951366,105710.0,105700.0,2.3149275]
[1749427835504,0.00041106,105710.0,105700.0,2.3149275]
[1749427835702,7.368e-05,105710.0,105700.0,2.52662364]
[1749427835904,0.00027426,105720.0,105710.0,0.1891026]
[1749427836104,0.00027426,105720.0,105710.0,1.81251305]
[1749427836296,0.00027426,105720.0,105710.0,1.9923169]
[1749427836501,0.00027426,105720.0,105710.0,2.08691085]
[1749427836698,0.00047426,105720.0,105710.0,2.08711085]
[1749427836902,0.00227426,105720.0,105710.0,2.08711085]
[1749427837103,0.00247426,105720.0,105710.0,2.08711085]
[1749427837904,0.00247426,105720.0,105710.0,2.12494085]
[1749427838313,0.00447426,105720.0,105710.0,2.12494085]
[1749427838805,0.19355896,105720.0,105710.0,2.12494085]
[1749427839207,0.19355896,105720.0,105710.0,1.62610866]
[1749427839418,0.19355896,105720.0,105710.0,2.07166866]
[1749427839607,0.19355896,105720.0,105710.0,1.74320481]
[1749427840007,0.19355896,105720.0,105710.0,2.03696081]
[1749427840209,0.19355896,105720.0,105710.0,1.73076206]
[1749427840409,0.19355896,105720.0,105710.0,1.51766206]
[1749427840410,0.41035511,105720.0,105710.0,1.51766206]
[1749427840610,0.51045511,105720.0,105710.0,1.02280606]
[1749427840911,0.51045511,105720.0,105710.0,0.72590606]
[1749427841111,0.51045511,105720.0,105710.0,0.93157692]
[1749427843118,0.51045511,105720.0,105710.0,1.12067952]
[1749427843322,0.39335896,105720.0,105710.0,1.12067952]
[1749427844120,0.39335896,105720.0,105710.0,0.93157692]
[1749427845826,0.39335896,105720.0,105710.0,1.12067952]
[1749427846209,0.39335896,105720.0,105710.0,0.93157692]
[1749427846518,0.91424366,105720.0,105710.0,0.62312235]
[1749427846723,0.91424366,105720.0,105710.0,0.23803]
[1749427848625,0.91424366,105720.0,105710.0,0.13803]
[1749427849028,1.25883566,105720.0,105710.0,0.03803]
[1749427849236,0.1891026,105710.0,105700.0,0.02069798]
[1749427849528,1.5765473,105710.0,105700.0,0.22069798]
[1749427849923,1.5765473,105710.0,105700.0,0.12069798]
[1749427850729,1.5775473,105710.0,105700.0,0.12069798]
[1749427851217,1.5775473,105710.0,105700.0,0.22069798]
[1749427851823,1.5805473,105710.0,105700.0,0.22069798]
[1749427852927,2.0114273,105710.0,105700.0,0.22069798]
[1749427854626,1.6506273,105710.0,105700.0,0.22069798]
[1749427854818,2.3722273,105710.0,105700.0,0.22069798]
[1749427857729,2.2121426,105710.0,105700.0,0.22069798]
[1749427860429,2.2121426,105710.0,105700.0,0.12069798]
[1749427860828,2.2121426,105710.0,105700.0,0.22069798]
[1749427861232,1.4891426,105710.0,105700.0,0.21530088]
[1749427861529,1.8499426,105710.0,105700.0,0.41550088]
[1749427861732,1.8501426,105710.0,105700.0,0.41550088]
[1749427862319,1.8501426,105710.0,105700.0,0.31530088]
[1749427863330,1.96726391,105710.0,105700.0,0.31530088]
[1749427864122,1.8497026,105710.0,105700.0,0.31530088]
[1749427864325,1.8497026,105710.0,105700.0,0.62880088]
[1749427864326,1.0916826,105710.0,105700.0,0.62880088]
[1749427864525,1.6423626,105710.0,105700.0,0.62880088]
[1749427864831,1.6423226,105710.0,105700.0,0.62880088]
[1749427865024,1.6423226,105710.0,105700.0,0.60833088]
[1749427865933,1.0916826,105710.0,105700.0,0.60833088]
[1749427866131,1.6421226,105710.0,105700.0,0.60833088]
[1749427866332,1.6461792,105710.0,105700.0,0.60833088]
[1749427867832,1.6461792,105710.0,105700.0,0.62880088]
[1749427868829,0.6282392,105710.0,105700.0,1.29584269]
[1749427869037,1.1785192,105710.0,105700.0,1.54278207]
[1749427869231,1.1744626,105710.0,105700.0,1.35366157]
[1749427869427,1.65218391,105710.0,105700.0,0.76904026]
[1749427869630,1.95898391,105710.0,105700.0,0.41550088]
[1749427869829,1.59818391,105710.0,105700.0,0.41550088]
[1749427870121,1.59718391,105710.0,105700.0,0.41550088]
[1749427870335,1.85724051,105710.0,105700.0,0.41550088]
[1749427870528,1.85924051,105710.0,105700.0,0.41550088]
[1749427870730,1.96874051,105710.0,105700.0,0.41550088]
[1749427870929,1.96974051,105710.0,105700.0,0.41550088]
[1749427871935,1.97074051,105710.0,105700.0,0.41550088]
[1749427872133,1.4928192,105710.0,105700.0,0.41550088]
[1749427872332,1.1785992,105710.0,105700.0,0.56244026]
[1749427872531,1.1783992,105710.0,105700.0,0.66434026]
[1749427872836,1.1771592,105710.0,105700.0,0.97058207]
[1749427873236,1.1773592,105710.0,105700.0,0.85346076]
[1749427873434,1.1733026,105710.0,105700.0,0.91219224]
[1749427873640,1.1713026,105710.0,105700.0,1.05927435]
[1749427874031,1.1713026,105710.0,105700.0,0.66448299]
[1749427875437,0.6221826,105710.0,105700.0,0.66448299]
[1749427875632,1.1709026,105710.0,105700.0,0.85360349]
[1749427875837,1.1709026,105710.0,105700.0,0.66448299]
[1749427876437,1.1749592,105710.0,105700.0,0.96138299]
[1749427879443,1.1749592,105710.0,105700.0,1.15050349]
[1749427879844,1.1749592,105710.0,105700.0,0.96138299]
[1749427880548,1.1749592,105710.0,105700.0,1.01997174]
[1749427880944,1.1749592,105710.0,105700.0,1.20909224]
[1749427882641,1.1749592,105710.0,105700.0,1.01997174]
[1749427882948,0.7460792,105710.0,105700.0,1.01997174]
[1749427884245,0.7460792,105710.0,105700.0,1.03904206]
[1749427885552,0.7420226,105710.0,105700.0,1.03904206]
[1749427886351,0.8433226,105710.0,105700.0,1.03904206]
[1749427886650,0.96044391,105710.0,105700.0,1.03904206]
[1749427886847,1.16434391,105710.0,105700.0,0.93714206]
[1749427888152,1.0472226,105710.0,105700.0,0.93714206]
[1749427888555,1.0512792,105710.0,105700.0,0.93714206]
[1749427891757,1.0512792,105710.0,105700.0,1.04624206]
[1749427895851,1.52920051,105710.0,105700.0,0.83694206]
[1749427896051,1.16840051,105710.0,105700.0,0.83694206]
[1749427897253,1.4120792,105710.0,105700.0,0.83694206]
[1749427898462,1.52920051,105710.0,105700.0,0.83694206]
[1749427899860,0.99806668,105710.0,105700.0,0.88969102]
[1749427900057,0.99806668,105710.0,105700.0,0.25768272]
[1749427900058,1.54642668,105710.0,105700.0,0.25768272]
[1749427900251,1.54642668,105710.0,105700.0,0.28712016]
[1749427901464,1.54642668,105710.0,105700.0,0.18712016]
[1749427902664,1.54642668,105710.0,105700.0,0.30491977]
[1749427902865,1.54642668,105710.0,105700.0,0.15756791]
[1749427903959,1.54642668,105710.0,105700.0,0.25756791]
[1749427904159,1.54642668,105710.0,105700.0,0.35756791]
[1749427904562,1.54642668,105710.0,105700.0,0.25756791]
[1749427905066,1.54642668,105710.0,105700.0,0.15756791]
[1749427905259,1.54642668,105710.0,105700.0,0.25756791]
[1749427907774,1.10406668,105710.0,105700.0,0.25756791]
[1749427907978,1.4109592,105710.0,105700.0,0.25756791]
[1749427908271,1.4103192,105710.0,105700.0,0.59222306]
[1749427908462,0.6592592,105710.0,105700.0,1.00546487]
[1749427908662,1.2063792,105710.0,105700.0,0.92634437]
[1749427908867,1.1010226,105710.0,105700.0,0.92634437]
[1749427909165,0.7400226,105710.0,105700.0,0.92634437]
[1749427909365,0.7402226,105710.0,105700.0,1.13201523]
[1749427909670,0.7402226,105710.0,105700.0,0.92634437]
[1749427911169,0.7402226,105710.0,105700.0,0.80922306]
[1749427911769,0.7402226,105710.0,105700.0,0.86754206]
[1749427914773,0.7398626,105710.0,105700.0,1.9785867]
[1749427914971,0.7396626,105710.0,105700.0,1.93148377]
[1749427915167,0.1933026,105710.0,105700.0,1.72581291]
[1749427915372,0.7397826,105710.0,105700.0,1.72581291]
[1749427915765,0.7399826,105710.0,105700.0,1.72581291]
[1749427915960,0.7379826,105710.0,105700.0,1.72581291]
[1749427916168,0.7369826,105710.0,105700.0,1.72581291]
[1749427916468,0.54768,105710.0,105700.0,1.72581291]
[1749427916671,0.10652,105710.0,105700.0,1.72581291]
[1749427916966,0.78308276,105720.0,105710.0,0.4891026]
[1749427917172,0.78308276,105720.0,105710.0,1.17582391]
[1749427917569,0.78328276,105720.0,105710.0,1.27042681]
[1749427918363,0.78528276,105720.0,105710.0,1.47608873]
[1749427918865,0.78508276,105720.0,105710.0,1.47608873]
[1749427919069,0.34416276,105720.0,105710.0,1.47608873]
[1749427919474,0.34616276,105720.0,105710.0,1.47608873]
[1749427920676,0.34616276,105720.0,105710.0,1.50443873]
[1749427922571,0.00447426,105720.0,105710.0,1.50443873]
[1749427922773,0.29887896,105720.0,105710.0,1.80133873]
[1749427923069,0.10979426,105720.0,105710.0,1.59567681]
[1749427923267,0.10979426,105720.0,105710.0,2.10114612]
[1749427923472,0.10959426,105720.0,105710.0,2.10114612]
[1749427923667,0.10979426,105720.0,105710.0,2.10114612]
[1749427923868,0.0001416,105730.0,105720.0,0.1890847]
[1749427924073,0.1892084,105730.0,105720.0,2.4543577]
[1749427924270,0.1892084,105730.0,105720.0,2.5489417]
[1749427924469,0.1892084,105730.0,105720.0,2.64353565]
[1749427924676,0.1892084,105730.0,105720.0,2.54895165]
[1749427925075,0.1922084,105730.0,105720.0,2.54895165]
[1749427925469,0.2835646,105750.0,105740.0,0.1890489]
[1749427925669,0.2835646,105750.0,105740.0,2.24430424]
[1749427926080,0.2837646,105750.0,105740.0,2.13393925]
[1749427926376,0.2837646,105750.0,105740.0,1.69257925]
[1749427926576,0.2897646,105750.0,105740.0,2.13409925]
[1749427927177,0.2867646,105750.0,105740.0,2.13409925]
[1749427927580,0.2907646,105750.0,105740.0,2.13409925]
[1749427927783,0.2907646,105750.0,105740.0,2.20900005]
[1749427927981,0.2907646,105750.0,105740.0,2.06260868]
[1749427928177,0.2867646,105750.0,105740.0,2.26755867]
[1749427928376,0.2877646,105750.0,105740.0,2.26755867]
[1749427928584,0.2877646,105750.0,105740.0,2.51848477]
[1749427928875,0.2877646,105750.0,105740.0,1.87509456]
[1749427929067,0.2877646,105750.0,105740.0,2.12390588]
[1749427929270,0.3940646,105750.0,105740.0,2.12390588]
[1749427929466,0.5013646,105750.0,105740.0,2.31295478]
[1749427929675,0.5013646,105750.0,105740.0,2.20861478]
[1749427930980,0.5013646,105750.0,105740.0,1.02534377]
[1749427931176,0.61848591,105750.0,105740.0,0.67461767]
[1749427931375,0.72868591,105750.0,105740.0,0.31381767]
[1749427931776,0.6115646,105750.0,105740.0,0.31381767]